[Event "NSV chessemy IM 2022"]
[Site "Braunschweig"]
[Date "2022.08.01"]
[Round "3.1"]
[White "Colbow, Collin"]
[Black "Brynell, Stellan"]
[Result "1/2-1/2"]
[ECO "C00"]
[WhiteElo "2325"]
[BlackElo "2387"]
[Annotator "TA"]
[PlyCount "162"]
[EventDate "2022.07.30"]
[EventType "tourn"]
[EventCountry "GER"]
[SourceTitle "playchess.com"]
[Source "ChessBase"]
[SourceQuality "1"]
[TimeControl "40/5400+30:1800+30"]

{[%evp 9,162,0,7,6,17,14,36,21,47,0,0,0,6,14,10,0,8,8,0,0,61,70,203,137,251,250,241,243,255,240,253,252,242,242,245,242,203,196,609,618,601,547,600,612,610,559,537,267,260,260,202,189,187,185,188,192,170,116,108,122,121,111,116,118,126,126,121,93,176,156,176,169,160,78,78,8,27,29,250,8,8,8,8,0,0,0,7,7,8,8,8,8,8,8,8,8,61,62,62,8,8,8,8,8,8,0,8,151,151,0,0,0,0,0,0,0,0,0,0,0,0,0,0,0,0,0,0,0,0,0,0,0,0,0,0,0,8,0,8,8,8,0,0,0,0,0,0,0,0,0,0,0,0,0,0]} 1. e4 {[%emt 0:01:26]} e6 {[%emt 0:00:05]} 2. d3 {[%emt 0:00:10]} d5 {[%emt 0:00:23]} 3. Qe2 {[%emt 0:00:06]} dxe4 {[%emt 0:02:22]} 4. dxe4 {[%emt 0:00:13]} e5 {[%emt 0:00:05]} 5. Nc3 {[%emt 0:00:21]} c6 {[%emt 0:12:59] [#]} 6. Bd2 $146 {[%emt 0:01:44] C00: French: Unusual White 2nd moves.} ({Predecessor:} 6. Qh5 Bd6 7. Bc4 Qe7 8. Bg5 Nf6 9. Bxf6 Qxf6 10. O-O-O Bb4 11. Nge2 O-O 12. Kb1 {0-1 (55) Hadziselimovic,B (1948)-Burovic,R (2347) Zenica 2016}) 6... Bc5 {[%emt 0:13:44]} 7. O-O-O {[%emt 0:03:58]} Qe7 {[%emt 0:01:18]} 8. f4 {[%emt 0:01:30] White is slightly better.} Nf6 {[%emt 0:05:50]} 9. f5 {[%emt 0:16:02]} b5 {[%emt 0:58:14]} 10. g4 {[%emt 0:10:10]} h6 {[%emt 0:00:00]} 11. h4 {[%emt 0:04:53]} Nbd7 {[%emt 0:00:00]} 12. Qg2 {[%emt 0:09:02]} h5 {[%emt 0:00:00]} 13. gxh5 {[%emt 0:03:35]} Nxh5 {[%emt 0:00:00]} 14. Be2 {[%emt 0:19:37]} Ndf6 {[%emt 0:00:00]} (14... Nhf6 $1 $11) 15. Bg5 $14 {[%emt 0:01:54]} a6 {[%emt 0:00:00]} (15... Bd7 $14) 16. Rh3 {[%emt 0:06:28]} Bd7 {[%emt 0:00:00]} (16... Bb7 $16) 17. Bxh5 $18 {[%emt 0:02:42]} Rxh5 {[%emt 0:00:00]} 18. Rhd3 $1 {[%emt 0:00:40][%cal Od3d7]} O-O-O {[%emt 0:00:00]} 19. Nf3 {[%emt 0:00:18]} Bb6 {[%emt 0:00:00]} 20. Qg3 {[%emt 0:05:09]} Bc7 {[%emt 0:00:00]} 21. Qg1 {[%emt 0:02:13] Black must now prevent Qa7.} Kb7 {[%emt 0:00:00] Against Qa7+} 22. Bxf6 {[%emt 0:01:20]} gxf6 {[%emt 0:00:00]} 23. Qg7 {[%emt 0:00:19] Threatens to win with Ne2.} Be8 $2 {[%emt 0:00:00]} (23... Bb6 24. a3 a5) 24. Rxd8 {[%emt 0:01:05]} Bxd8 {[%emt 0:00:00][%cal Bc7d8,Bd8b6,Bb6e3][%mdl 32]} 25. Ne2 {[%emt 0:00:54]} Bb6 {[%emt 0:00:00]} 26. Ng3 {[%emt 0:02:16]} Be3+ {[%emt 0:00:00]} 27. Kb1 {[%emt 0:00:06]} Rh6 {[%emt 0:00:00]} 28. Rd3 {[%emt 0:00:53]} (28. Nf1 $142 Bf4 29. N1h2 Bxh2 30. Qxh6) 28... Bf4 {[%emt 0:00:00]} 29. Ne2 {[%emt 0:01:18]} Rh5 {[%emt 0:00:00]} 30. Qg4 {[%emt 0:05:08]} Rh8 {[%emt 0:00:00]} 31. Nxf4 {[%emt 0:00:30]} exf4 {[%emt 0:00:00]} 32. Qxf4 {[%emt 0:00:00]} c5 {[%emt 0:00:00]} 33. Qd6 {[%emt 0:00:00]} ({White should try} 33. a3 $18) 33... Qxd6 $16 {[%emt 0:01:57]} 34. Rxd6 {[%emt 0:00:00][%mdl 4096] Endgame KRB-KRN} Bc6 {[%emt 0:01:23]} 35. Rxf6 {[%emt 0:00:00]} Bxe4 {[%emt 0:00:09]} 36. Rxf7+ {[%emt 0:00:00]} Kb6 {[%emt 0:00:12]} 37. Ng5 {[%emt 0:01:50]} Rxh4 {[%emt 0:00:11][%cal Rh4h1]} 38. Rf6+ {[%emt 0:00:51]} Ka5 {[%emt 0:06:03]} (38... Kb7 $16 39. b3 Bd5) 39. b3 $18 {[%emt 0:00:16]} Rf4 {[%emt 0:01:55]} 40. Nxe4 {[%emt 0:00:57]} Rxe4 {[%emt 0:00:06] KR-KR} 41. a3 {[%emt 0:11:29]} (41. Rc6 $142) 41... Rf4 $16 {[%emt 0:02:07] [#]} 42. Kc1 {[%emt 0:03:58]} ({Better is} 42. Rf8 $1 $16) 42... b4 {[%emt 0:10:13]} 43. axb4+ {[%emt 0:07:15]} cxb4 $2 {[%emt 0:16:01]} (43... Kxb4 $11 44. Kd2 (44. Rxa6 Kc3 $11) 44... c4) 44. Rf8 $2 {[%emt 0:00:45]} (44. Kd2 $18) 44... Rf2 $1 $11 {[%emt 0:01:15]} 45. f6 {[%emt 0:00:12] And now f7 would win.} Kb6 {[%emt 0:00:34]} 46. Kd1 {[%emt 0:00:26]} Kb7 {[%emt 0:00:06]} 47. Ke1 {[%emt 0:02:18]} Rf5 {[%emt 0:00:31]} 48. Ke2 {[%emt 0:00:45]} a5 {[%emt 0:01:08]} 49. Ke3 {[%emt 0:03:01]} Rf1 {[%emt 0:00:07]} 50. Kd4 {[%emt 0:01:00]} Rf2 {[%emt 0:00:38]} 51. Kd3 {[%emt 0:03:00]} Ka7 {[%emt 0:00:49]} 52. Ke3 {[%emt 0:00:53]} Rf1 {[%emt 0:00:38]} 53. Ke4 {[%emt 0:00:34] Strongly threatening Ke5.} Rf2 $1 {[%emt 0:00:06]} 54. f7 {[%emt 0:00:51]} (54. Ke5 $14 Rxc2 55. Rh8 Re2+ 56. Kd5) 54... Kb7 {[%emt 0:00:43]} 55. Ke5 {[%emt 0:00:05]} Re2+ {[%emt 0:01:14]} 56. Kd5 {[%emt 0:00:12]} Rd2+ {[%emt 0:00:08]} 57. Ke5 {[%emt 0:00:14]} Re2+ {[%emt 0:00:10]} 58. Kd4 {[%emt 0:00:05] Intending Re8 and mate.} Rf2 {[%emt 0:00:07] [#]} 59. Kc5 $2 {[%emt 0:02:17]} (59. c4 $1 $16 {[%cal Rc4c5] c5 is the strong threat.} bxc3 60. Kxc3) 59... Rxc2+ {[%emt 0:00:15] The position is equal.} 60. Kb5 {[%emt 0:00:03][%cal Of8b8] White wants to mate with Rb8+!} Rf2 {[%emt 0:00:09]} 61. Kxa5 {[%emt 0:00:06]} Rf4 {[%emt 0:00:31]} 62. Kb5 {[%emt 0:00:07]} Ka7 $1 {[%emt 0:01:14]} 63. Kc6 {[%emt 0:00:34]} Rf1 {[%emt 0:00:24]} 64. Kd5 {[%emt 0:00:56]} Kb7 {[%emt 0:00:16]} 65. Ke6 {[%emt 0:00:16]} Re1+ $1 {[%emt 0:00:05]} 66. Kd6 {[%emt 0:00:05][%cal Of8b8] Threatening mate with Rb8+!} Rf1 {[%emt 0:00:09]} 67. Kc5 {[%emt 0:00:24]} Rf4 $1 {[%emt 0:00:06]} 68. Kb5 {[%emt 0:00:09]} Ka7 $1 {[%emt 0:00:06]} 69. Rc8 {[%emt 0:00:48]} Rxf7 {[%emt 0:08:14]} 70. Kxb4 {[%emt 0:00:04]} Kb7 {[%emt 0:00:00]} 71. Rc5 {[%emt 0:00:07]} Rh7 {[%emt 0:00:00]} 72. Kb5 {[%emt 0:00:05]} Rg7 {[%emt 0:00:00]} 73. b4 {[%emt 0:00:04][%cal Bb3b4,Bb4b5,Bb5b6][%mdl 32]} Rh7 {[%emt 0:00:00]} 74. Rg5 {[%emt 0:00:05]} Rf7 {[%emt 0:00:00]} 75. Kc5 {[%emt 0:00:05]} Rh7 {[%emt 0:00:00]} 76. b5 {[%emt 0:00:14]} Rf7 {[%emt 0:00:00]} 77. b6 {[%emt 0:01:18]} Rh7 {[%emt 0:00:00]} 78. Kb5 $1 {[%emt 0:00:05]} Rf7 {[%emt 0:00:00]} 79. Rc5 {[%emt 0:00:06]} Rh7 {[%emt 0:00:00]} 80. Rc7+ {[%emt 0:00:04]} Rxc7 {[%emt 0:00:00]} 81. bxc7 {[%emt 0:00:02]} Kxc7 {[%emt 0:00:00] Black defended with fortune.  Weighted Error Value: White=0.22 (precise) /Black=0.24 (precise)} 1/2-1/2

[Event "NSV chessemy IM 2022"]
[Site "Braunschweig"]
[Date "2022.08.01"]
[Round "3.2"]
[White "von Mettenheim, Johannes"]
[Black "Knuedel, Torben"]
[Result "1-0"]
[ECO "E06"]
[WhiteElo "2253"]
[BlackElo "2210"]
[Annotator "TA"]
[PlyCount "105"]
[EventDate "2022.07.30"]
[EventType "tourn"]
[EventCountry "GER"]
[SourceTitle "playchess.com"]
[Source "ChessBase"]
[SourceQuality "1"]
[TimeControl "40/5400+30:1800+30"]

{[%evp 9,105,19,9,0,2,6,17,0,20,16,10,13,10,14,17,-93,-81,-88,-100,-88,-82,-106,-106,-90,-81,-91,-96,-104,-85,-224,-221,-215,-202,-207,-207,-217,-209,-244,-115,-107,-114,-332,-316,-306,-211,-220,-228,-311,-216,-218,-231,-544,-249,-252,-131,-446,-469,-1213,-1194,-1082,-1069,-847,-223,-203,27,-329,99,9,35,0,54,0,162,-11,-26,-26,-26,-26,-26,-796,-794,-770,-764,-764,-762,-708,-703,-671,29984,29985,29985,29986,29986,29987,29987,29988,29988,29986]} 1. d4 {[%emt 0:00:04]} Nf6 {[%emt 0:00:04]} 2. c4 {[%emt 0:00:08]} e6 {[%emt 0:00:08]} 3. g3 {[%emt 0:00:07]} d5 {[%emt 0:00:11]} 4. Bg2 {[%emt 0:00:24]} Be7 {[%emt 0:00:07]} 5. Nf3 {[%emt 0:00:06]} O-O {[%emt 0:00:07]} 6. Qb3 {[%emt 0:00:12] E06: Closed Catalan: Early deviations.} a6 {[%emt 0:02:55]} 7. Bf4 {[%emt 0:02:08]} Nc6 {[%emt 0:03:53]} 8. Nbd2 {[%emt 0:02:39] The position is equal.} dxc4 {[%emt 0:12:12]} 9. Qxc4 {[%emt 0:21:02]} Nd5 {[%emt 0:01:19]} 10. O-O {[%emt 0:00:20]} Nxf4 {[%emt 0:08:00]} 11. gxf4 {[%emt 0:00:07] [#]} Bd7 $146 {[%emt 0:07:43][%cal Bc8d7,Bd7b5,Bb5e2][%mdl 32]} ({Predecessor:} 11... Bd6 12. e3 Bd7 13. Qb3 Rb8 14. Rac1 Ne7 15. Ne5 Bb5 16. Rfe1 Qe8 17. Kh1 Ba4 {½-½ (48) Dizdarevic,E (2425)-Schulz,K Arandjelovac 1985}) 12. Ne5 {[%emt 0:08:39]} (12. Rfc1 $11 {keeps the balance.}) 12... Nxe5 $17 {[%emt 0:00:31]} 13. fxe5 {[%emt 0:00:36]} Bb5 {[%emt 0:02:26]} 14. Qc3 {[%emt 0:00:27]} Bxe2 {[%emt 0:02:22]} 15. Rfe1 {[%emt 0:03:42]} Bh5 {[%emt 0:00:19]} 16. Bxb7 {[%emt 0:01:20]} Rb8 {[%emt 0:00:10]} 17. Bc6 {[%emt 0:25:03]} Bb4 {[%emt 0:01:48]} 18. Qe3 {[%emt 0:00:12]} f5 {[%emt 0:09:52]} 19. exf6 {[%emt 0:08:23]} (19. f4 $17) 19... Rxf6 $19 {[%emt 0:00:37][%cal Oe6e5]} (19... Qxf6 20. a3 Bd6 21. Nc4 $17) 20. a3 {[%emt 0:02:17]} Bd6 {[%emt 0:06:46] Hoping for ...Bf4. This bishop pair is nice.} 21. Ne4 {[%emt 0:03:21]} Rg6+ {[%emt 0:02:05]} 22. Ng3 {[%emt 0:00:05]} Qh4 {[%emt 0:05:48]} (22... Rxb2 23. Bg2 Rh6 24. Rab1 Rxb1 25. Rxb1 $17) 23. Qe4 {[%emt 0:06:45]} Qf6 {[%emt 0:00:14]} (23... Bg4 $19 24. b4 Rf8) 24. Bd7 $17 {[%emt 0:02:08]} Bg4 {[%emt 0:10:19] And now ...Rf8 would win.} 25. b4 $2 {[%emt 0:01:00]} (25. d5 $17) 25... Rf8 $19 {[%emt 0:01:09]} 26. Ra2 {[%emt 0:00:06]} Qe7 $40 {[%emt 0:01:28][%mdl 128] Black has strong attack.} 27. Bc6 {[%emt 0:01:36]} Qh4 {[%emt 0:10:54]} (27... Bf3 28. Qc2) 28. Qg2 {[%emt 0:01:00]} Bh3 {[%emt 0:00:44]} 29. Qe4 {[%emt 0:00:23]} Rf4 {[%emt 0:02:26]} 30. Qd3 {[%emt 0:02:51] [#]} (30. Qe3 {is more resistant.}) 30... Rxd4 {[%emt 0:02:58]} (30... Rxf2 $142 $3 {[%mdl 512]} 31. Kxf2 (31. Rxf2 $2 Bxg3 32. hxg3 Rxg3+ 33. Qxg3 Qxg3+ 34. Bg2 Bxg2 $19) 31... Bf5) 31. Qxa6 {[%emt 0:00:22]} h5 {[%emt 0:00:37]} (31... Bxg3 $19 32. fxg3 Rxg3+ $1 {[%mdl 512]} 33. Kh1 Rgd3) 32. Qc8+ $2 {[%emt 0:02:51][%mdl 8192]} (32. Qa8+ $17 Bf8 33. Be4) 32... Kh7 {[%emt 0:00:08][%cal Rd6g3]} 33. Rae2 {[%emt 0:04:07]} (33. Kh1 $142 Qf4 34. Qa6) 33... Bxg3 {[%emt 0:01:54]} 34. fxg3 {[%emt 0:00:15] [#]} Rxg3+ $1 {[%emt 0:00:49][%mdl 512]} 35. Kh1 {[%emt 0:00:06]} Rgd3 $2 {[%emt 0:02:04]} (35... Bg4 36. Qxc7 Rc3) 36. Qxc7 {[%emt 0:01:12]} (36. Be4+ Rxe4 $1 {[%mdl 512]}) 36... Rd2 $2 {[%emt 0:01:48]} (36... Rc4 $1 $19 37. Rg1 Qd4) 37. Rg1 {[%emt 0:00:53][%mdl 8192] [#]} Rd7 $2 {[%emt 0:01:11] [#]} (37... Qf6 38. Qe5 Qxe5 39. Rxe5 $11) (37... Rg4 $1 $19 {[%cal Rg4g1] ( -> ...Rxg1+)} 38. Be4+ (38. Rxg4 {is a self mate.} Rd1+ 39. Rg1 Rxg1+ 40. Kxg1 Qd4+ 41. Rf2 Qd1+) 38... Kh6) 38. Qe5 {[%emt 0:01:16]} (38. Qg3 $1 $16 {[%cal Rg3h4]} Qxg3 39. Rxg3 Rxe2 40. Bxd7) 38... Bg4 $11 {[%emt 0:00:24]} 39. Be4+ {[%emt 0:00:23]} Kh8 {[%emt 0:00:24]} (39... g6 $11 40. Reg2 (40. Rxd2 Rxd2 41. Qc7+ Kg8 $11) 40... Bf5) 40. Qf4 {[%emt 0:00:31]} Qf6 $2 {[%emt 0:00:35]} (40... Qd8 $1 $11 {and Black stays safe.} 41. Rxd2 Rxd2) 41. Qxd2 $2 {[%emt 0:03:09]} ({Only move:} 41. Qxf6 $18 gxf6 42. Rxd2 Rxd2 43. Rb1) 41... Rxd2 {[%emt 0:02:42]} 42. Rxd2 {[%emt 0:00:05]} Bf3+ {[%emt 0:00:16]} 43. Bxf3 {[%emt 0:00:06]} Qxf3+ {[%emt 0:00:04][%mdl 4096] Endgame KQ-KRR} 44. Rdg2 $2 {[%emt 0:00:32][%mdl 8192] [#]} (44. Rgg2 $11) 44... h4 $1 $19 {[%emt 0:02:58] White must now prevent ...h3.} 45. h3 {[%emt 0:00:50]} Qxh3+ {[%emt 0:00:14]} 46. Rh2 {[%emt 0:00:15]} Qf3+ {[%emt 0:00:06]} 47. Rgg2 {[%emt 0:29:56]} g5 {[%emt 0:01:39]} 48. a4 {[%emt 0:00:00]} h3 $4 {[%emt 0:02:54][%mdl 8192] [#]} (48... Kh7 $19 49. a5 Kh6) 49. Rxh3+ $3 {[%emt 0:00:00][%mdl 512] White mates.} Qxh3+ {[%emt 0:01:20]} 50. Rh2 {[%emt 0:00:00]} Qxh2+ {[%emt 0:01:34]} 51. Kxh2 {[%emt 0:00:00]} e5 {[%emt 0:00:16]} 52. a5 {[%emt 0:00:00]} e4 {[%emt 0:00:03]} 53. Kg2 {[%emt 0:00:00] Both players deserved the win here.  Weighted Error Value: White=0.77/Black=0.69} 1-0

[Event "NSV chessemy IM 2022"]
[Site "Braunschweig"]
[Date "2022.08.01"]
[Round "3.3"]
[White "Voege, Tobias"]
[Black "Pubantz, Jan"]
[Result "1-0"]
[ECO "D10"]
[WhiteElo "2272"]
[BlackElo "2269"]
[Annotator "TA"]
[PlyCount "91"]
[EventDate "2022.07.30"]
[EventType "tourn"]
[EventCountry "GER"]
[SourceTitle "playchess.com"]
[Source "ChessBase"]
[SourceQuality "1"]
[TimeControl "40/5400+30:1800+30"]

{[%evp 16,91,0,0,0,0,0,0,0,-9,0,0,0,0,-4,-74,13,-18,-16,-24,-30,-23,-14,-29,8,13,0,15,22,0,16,0,0,-16,-19,-44,-19,-59,91,13,12,57,48,0,224,223,218,225,263,247,329,329,319,304,807,122,118,0,861,476,515,516,497,482,1311,1183,954,860,12414,6101,5724,5197,1226,1125,29972,29972,29976,29975]} 1. d4 {[%emt 0:00:01]} d5 {[%emt 0:00:10]} 2. c4 {[%emt 0:00:08]} dxc4 {[%emt 0:00:27]} 3. e4 {[%emt 0:00:30]} b5 {[%emt 0:00:24][%cal Bb7b5,Bb5b4][%mdl 32]} 4. a4 {[%emt 0:00:51]} c6 {[%emt 0:00:24]} 5. Nc3 {[%emt 0:00:24]} b4 {[%emt 0:01:08]} 6. Na2 {[%emt 0:07:49]} Nf6 {[%emt 0:00:45]} 7. e5 {[%emt 0:03:55]} Nd5 {[%emt 0:00:13]} 8. Bxc4 {[%emt 0:00:40]} e6 {[%emt 0:00:22]} 9. Nf3 {[%emt 0:04:05]} Be7 {[%emt 0:00:19] Prevents Bg5. D10: Slav Defence: 3 cxd5 (without early Nf3) and 3 Nc3.} 10. O-O {[%emt 0:01:32]} a5 {[%emt 0:04:27]} 11. Be3 {[%emt 0:03:19] [#]} Nd7 $146 {[%emt 0:08:13] The position is equal.} ({Predecessor:} 11... O-O 12. Nc1 Bb7 13. Nb3 Nxe3 14. fxe3 Nd7 15. Bd3 c5 16. Rc1 cxd4 17. exd4 Nb6 {0-1 (35) Filipenko,A (2351)-Guliyev,N (2545) Moscow 2012}) 12. Nc1 {[%emt 0:04:52]} N7b6 {[%emt 0:11:04]} 13. Be2 {[%emt 0:15:26]} Nxe3 {[%emt 0:16:06]} 14. fxe3 {[%emt 0:00:05]} c5 {[%emt 0:01:30]} 15. Nb3 {[%emt 0:06:02]} (15. dxc5 $11 Qxd1 16. Rxd1 Bxc5 17. Nd4) 15... cxd4 {[%emt 0:07:41]} (15... c4 $17 16. Nc5 O-O) 16. Bb5+ {[%emt 0:08:47]} Bd7 {[%emt 0:00:56]} 17. Nbxd4 {[%emt 0:00:50] [#] Hoping for Nc6. Pair of Knights!} O-O {[%emt 0:03:40]} 18. Qe2 {[%emt 0:04:30]} Bc5 {[%emt 0:07:54]} 19. Nb3 {[%emt 0:09:38]} Bxb5 {[%emt 0:04:46]} 20. axb5 {[%emt 0:00:17]} Qd5 {[%emt 0:00:43]} 21. Nxc5 {[%emt 0:07:30]} Qxc5 {[%emt 0:00:02]} 22. Rfc1 {[%emt 0:02:14] Against Qc4} Qe7 {[%emt 0:01:29]} 23. Rc6 {[%emt 0:01:33]} Qa7 {[%emt 0:04:58]} 24. Kf2 {[%emt 0:06:56]} a4 {[%emt 0:06:52]} 25. Qc2 {[%emt 0:01:02]} Nd5 {[%emt 0:02:36]} 26. Nd4 {[%emt 0:01:07]} (26. b6 $2 Nxb6 27. Qc5 Nd5 28. Qxa7 Rxa7 $17) 26... f6 {[%emt 0:03:33]} (26... Qb8 $15 {stays ahead.} 27. Rd6 a3) 27. exf6 {[%emt 0:03:46] White is more active.} (27. Kg1 $16) 27... Rxf6+ $11 {[%emt 0:01:35]} 28. Kg1 {[%emt 0:01:10]} Nxe3 {[%emt 0:08:45]} 29. Qe4 {[%emt 0:00:48]} (29. Rc8+ $1 $14 Rf8 30. Rxf8+ Rxf8 31. Qe4) 29... Rd8 $2 {[%emt 0:02:39]} (29... a3 $1 $11 {and Black stays safe.} 30. Ra6 (30. Qxe3 axb2 31. Re1 Qa2 $17) 30... Raf8 31. Qxe3 (31. Rxa7 $2 Rf1+ 32. Rxf1 Rxf1#) 31... Qf7) 30. b6 $18 {[%emt 0:01:07]} (30. Qxe3 Rxd4 31. Rxe6 Rxe6 32. Qxe6+ Qf7 33. Qc8+ Qf8 34. Qxf8+ Kxf8 $14) (30. Nxe6 Re8 31. Ra6 Qf7 32. Qxe3 Rfxe6 33. Rxe6 Rxe6 $11) 30... Qb7 {[%emt 0:01:01][%cal Od8d4]} 31. Qxe3 {[%emt 0:01:55]} Rxd4 {[%emt 0:00:37]} 32. Rxe6 {[%emt 0:00:55]} (32. Qxd4 Qxc6 33. Qxb4 Rf8 $11) 32... Rd8 {[%emt 0:00:37]} 33. Rxf6 {[%emt 0:00:56]} gxf6 {[%emt 0:00:01][%mdl 4096] Endgame KQR-KQR} 34. Qe6+ {[%emt 0:00:52]} ({Less strong is} 34. Rxa4 Qd5 35. Ra1 (35. Rxb4 $2 Qd1+ 36. Kf2 Rd2+ 37. Kg3 Rd3 $19) 35... Kh8 $18) 34... Kg7 $2 {[%emt 0:00:43]} (34... Qf7 35. Qg4+ Qg7 36. Qxg7+ Kxg7 37. Rxa4 Rb8 38. Rxb4 Rb7) 35. Qg4+ $2 {[%emt 0:01:32]} (35. Rxa4 $18 {is more deadly. Ra7 is the strong threat.} Ra8 36. Rxb4) 35... Kh8 {[%emt 0:00:27]} 36. Qe6 {[%emt 0:00:46][%mdl 8192]} ({Not} 36. Rxa4 Qxb6+ 37. Kh1 Qc6 $17) (36. Qxb4 $16 Rb8 37. Rxa4) 36... Kg7 $1 {[%emt 0:00:46]} 37. Rf1 {[%emt 0:00:14]} Qf7 {[%emt 0:00:27]} 38. Qg4+ {[%emt 0:00:13]} Kh8 {[%emt 0:00:36]} 39. Qxb4 {[%emt 0:00:19]} Qb3 {[%emt 0:00:30]} (39... Rg8 $142 40. Qd4 Rg6) 40. Qxb3 {[%emt 0:00:33]} axb3 {[%emt 0:00:01]} 41. Rxf6 {[%emt 0:03:17] [#] Intending Rf7 and mate. KR-KR} Rb8 {[%emt 0:02:35]} 42. Kf2 {[%emt 0:01:00]} (42. Rc6 $142 Kg7 43. Kf2) 42... Kg7 {[%emt 0:00:02]} 43. Rc6 {[%emt 0:00:08] Ke3 would kill now.} Kf7 {[%emt 0:03:30]} 44. Ke3 {[%emt 0:00:07] Threatening mate with Kd4.} Ke8 {[%emt 0:04:07]} 45. Kd4 {[%emt 0:00:14]} h5 {[%emt 0:01:28]} 46. Kc5 {[%emt 0:00:31] Weighted Error Value: White=0.51/Black=0.46} 1-0

[Event "NSV chessemy IM 2022"]
[Site "Braunschweig"]
[Date "2022.08.01"]
[Round "3.4"]
[White "Chennaoui, Yasin"]
[Black "Sriram, Jha"]
[Result "1/2-1/2"]
[ECO "B51"]
[WhiteElo "2127"]
[BlackElo "2361"]
[Annotator "TA"]
[PlyCount "35"]
[EventDate "2022.07.30"]
[EventType "tourn"]
[EventCountry "GER"]
[SourceTitle "playchess.com"]
[Source "ChessBase"]
[SourceQuality "1"]
[TimeControl "40/5400+30:1800+30"]

{[%evp 9,35,8,33,27,26,28,27,18,25,16,28,20,14,23,25,29,37,2,14,8,18,12,16,14,31,3,0,0]} 1. Nf3 {[%emt 0:00:00]} c5 {[%emt 0:04:14]} 2. e4 {[%emt 0:03:44]} d6 {[%emt 0:02:36]} 3. Nc3 {[%emt 0:03:06]} Nf6 {[%emt 0:01:41]} 4. Bb5+ {[%emt 0:05:53]} Nbd7 {[%emt 0:03:11]} 5. O-O {[%emt 0:01:39]} e5 {[%emt 0:09:37]} 6. a4 {[%emt 0:09:27] B51: Sicilian: Moscow Variation (3 Bb5+) without 3...Bd7.} Be7 {[%emt 0:02:56]} 7. d3 {[%emt 0:02:00]} O-O {[%emt 0:01:25]} 8. Ne1 {[%emt 0:21:16] [#] White has an edge.} Nb8 $146 {[%emt 0:16:45][%cal Bd7b8,Bb8c6,Bc6d4][%mdl 32]} ({Predecessor:} 8... a6 9. Bc4 b6 10. Nd5 Nxd5 11. Bxd5 Rb8 12. f4 Nf6 13. Bb3 b5 14. Nf3 Qc7 15. fxe5 dxe5 16. axb5 axb5 {½-½ (34) Kassel,W (1879)-Wallner,D (2145) Graz 2015}) 9. f4 {[%emt 0:00:16]} Bg4 {[%emt 0:00:09]} 10. Nf3 {[%emt 0:00:15]} exf4 {[%emt 0:06:20]} 11. Bxf4 {[%emt 0:04:55]} Nc6 {[%emt 0:02:26]} 12. h3 {[%emt 0:05:42]} Bxf3 {[%emt 0:08:36]} 13. Qxf3 {[%emt 0:00:17]} ({Of course not} 13. gxf3 d5 $11) 13... Nd4 {[%emt 0:00:05][%csl LRc2,LRf3]} 14. Qf2 {[%emt 0:00:13]} d5 {[%emt 0:05:17] Prevents Bc4.} 15. exd5 {[%emt 0:04:34] Black must now prevent Bc4.} Nxb5 {[%emt 0:01:18]} 16. axb5 {[%emt 0:02:36] Strongly threatening Rae1.} Nxd5 {[%emt 0:00:06]} 17. Nxd5 {[%emt 0:01:41]} Qxd5 {[%emt 0:00:02]} 18. Qf3 {[%emt 0:01:00] A balanced but interesting game.  Weighted Error Value: White=0.09 (flawless) /Black=0.05 (flawless)} 1/2-1/2

[Event "NSV chessemy IM 2022"]
[Site "Braunschweig"]
[Date "2022.08.01"]
[Round "3.5"]
[White "Fischer, Daniel"]
[Black "Sumets, Andrey"]
[Result "1/2-1/2"]
[ECO "B12"]
[WhiteElo "2351"]
[BlackElo "2542"]
[Annotator "TA"]
[PlyCount "57"]
[EventDate "2022.07.30"]
[EventType "tourn"]
[EventCountry "GER"]
[SourceTitle "playchess.com"]
[Source "ChessBase"]
[SourceQuality "1"]
[TimeControl "40/5400+30:1800+30"]

{[%evp 10,57,34,13,31,24,24,29,28,0,0,2,8,8,0,0,20,8,58,36,39,28,23,23,23,23,18,17,12,18,12,16,21,21,20,8,8,8,9,0,0,0,0,0,0,0,0,0,0,0]} 1. e4 {[%emt 0:00:04]} c6 {[%emt 0:00:03]} 2. d4 {[%emt 0:00:07]} d5 {[%emt 0:00:03]} 3. e5 {[%emt 0:00:12]} Bf5 {[%emt 0:00:05]} 4. Nf3 {[%emt 0:00:08][%cal Bg1f3,Bf3e1,Be1c2,Bc2e3][%mdl 32]} e6 {[%emt 0:00:08]} 5. Be2 {[%emt 0:00:04]} Ne7 {[%emt 0:00:08]} 6. O-O {[%emt 0:01:02]} Ng6 {[%emt 0:00:14] 6...h6 is the modern continuation. B12: Caro-Kann: Advance Variation.} (6... c5 $5) 7. Ne1 {[%emt 0:04:12] [#] Black must now prevent g4.} h5 {[%emt 0:00:07]} 8. c3 {[%emt 0:10:55]} c5 {[%emt 0:06:09] White has an edge.} 9. Nc2 {[%emt 0:06:25]} Nc6 {[%emt 0:03:30]} 10. Ne3 {[%emt 0:10:42] [#]} Be4 $146 {[%emt 0:11:16]} ({Predecessor:} 10... Bxb1 11. Rxb1 cxd4 12. cxd4 Qb6 13. Nc2 h4 14. Be3 Nge7 15. b4 Nf5 16. b5 Na5 {1-0 (41) Srija,S (2255)-Villanueva,N (2133) Abu Dhabi 2018}) 11. Nd2 {[%emt 0:01:27]} cxd4 {[%emt 0:00:50]} 12. cxd4 {[%emt 0:00:12]} Nf4 {[%emt 0:10:58]} 13. Nxe4 {[%emt 0:02:26] [#] Hoping for Nc3.} dxe4 {[%emt 0:00:04]} (13... Nxe2+ $11 14. Qxe2 Nxd4) 14. Bb5 $14 {[%emt 0:04:19]} Rc8 {[%emt 0:05:44]} 15. Nc2 {[%emt 0:06:08]} Nd3 {[%emt 0:04:36]} 16. Bxd3 {[%emt 0:02:18]} exd3 {[%emt 0:00:10]} 17. Qxd3 {[%emt 0:00:05]} Nxe5 {[%emt 0:00:17][%cal Bc6e5,Be5d7,Bd7b6][%mdl 32]} 18. Qb5+ {[%emt 0:00:16] The position is equal.} Nd7 {[%emt 0:00:24]} 19. Ne3 {[%emt 0:01:20]} Qb6 {[%emt 0:00:55]} 20. Qa4 {[%emt 0:02:15]} Qa6 {[%emt 0:17:42]} 21. Qxa6 {[%emt 0:04:42]} bxa6 {[%emt 0:00:08]} 22. Bd2 {[%emt 0:01:36]} Nb6 {[%emt 0:00:53]} 23. Rac1 {[%emt 0:01:03]} Rd8 {[%emt 0:09:27]} 24. Ba5 {[%emt 0:07:07][%cal Od4d5]} Rxd4 {[%emt 0:02:00]} 25. Rc6 {[%emt 0:03:22]} Rd6 {[%emt 0:04:35]} 26. Rc7 {[%emt 0:02:17]} Rd7 {[%emt 0:00:09]} 27. Rc6 {[%emt 0:00:25]} Rd6 {[%emt 0:10:41]} 28. Rc7 {[%emt 0:00:06]} Rd7 {[%emt 0:00:21]} 29. Rc6 {[%emt 0:00:09] Weighted Error Value: White=0.04 (flawless) /Black=0.05 (flawless)} 1/2-1/2